[Event "Titled Tuesday Blitz October 5 2021"]
[White "Kezin, Roman"]
[Black "Berezin, Viktor"]
[WhiteFideId "24124621"]
[BlackFideId "14107872"]
[WhiteElo "2809"]
[BlackElo "2452"]
[Result "1-0"]
[Round "09"]
[TimeControl "180+1"]
[Date "2021.10.05"]
[WhiteClock "0:01:31"]
[BlackClock "0:00:09"]

1. d4 {[%clk 0:02:59]}  Nf6 {[%clk 0:02:59]} 2. c4 {[%clk 0:03:00]}  g6 {[%clk 0:02:56]} 3. Nc3 {[%clk 0:02:59]}  Bg7 {[%clk 0:02:55]} 4. Nf3 {[%clk 0:03:00]}  d6 {[%clk 0:02:56]} 5. Bg5 {[%clk 0:03:00]}  O-O {[%clk 0:02:56]} 6. e3 {[%clk 0:03:01]}  c5 {[%clk 0:02:56]} 7. d5 {[%clk 0:03:01]}  a6 {[%clk 0:02:54]} 8. Nd2 {[%clk 0:02:59]}  b5 {[%clk 0:02:48]} 9. cxb5 {[%clk 0:03:00]}  axb5 {[%clk 0:02:49]} 10. Bxb5 {[%clk 0:03:00]}  Ba6 {[%clk 0:02:50]} 11. a4 {[%clk 0:02:59]}  Nbd7 {[%clk 0:02:43]} 12. O-O {[%clk 0:02:58]}  Nb6 {[%clk 0:02:40]} 13. e4 {[%clk 0:02:58]}  Nfd7 {[%clk 0:02:26]} 14. Qe2 {[%clk 0:02:56]}  Bxb5 {[%clk 0:02:19]} 15. axb5 {[%clk 0:02:57]}  Rc8 {[%clk 0:02:11]} 16. Nb3 {[%clk 0:02:55]}  h6 {[%clk 0:01:55]} 17. Bh4 {[%clk 0:02:53]}  Ne5 {[%clk 0:01:52]} 18. Na5 {[%clk 0:02:50]}  g5 {[%clk 0:01:43]} 19. Bg3 {[%clk 0:02:50]}  Qd7 {[%clk 0:01:44]} 20. Nc6 {[%clk 0:02:48]}  Nec4 {[%clk 0:01:35]} 21. Ra7 {[%clk 0:02:47]}  Rc7 {[%clk 0:01:35]} 22. Rfa1 {[%clk 0:02:48]}  Rfc8 {[%clk 0:01:27]} 23. h3 {[%clk 0:02:47]}  Bd4 {[%clk 0:01:09]} 24. Kh2 {[%clk 0:02:45]}  Rxa7 {[%clk 0:01:04]} 25. Rxa7 {[%clk 0:02:45]}  Rc7 {[%clk 0:01:05]} 26. Ra6 {[%clk 0:02:46]}  Rb7 {[%clk 0:01:03]} 27. b3 {[%clk 0:02:39]}  Bxc3 {[%clk 0:00:54]} 28. bxc4 {[%clk 0:02:39]}  e5 {[%clk 0:00:50]} 29. dxe6 {[%clk 0:02:16]}  fxe6 {[%clk 0:00:44]} 30. Qd3 {[%clk 0:02:16]}  Qg7 {[%clk 0:00:33]} 31. Bxd6 {[%clk 0:02:06]}  Rd7 {[%clk 0:00:19]} 32. Rxb6 {[%clk 0:02:03]}  Qf6 {[%clk 0:00:17]} 33. Rb8+ {[%clk 0:01:57]}  Kg7 {[%clk 0:00:13]} 34. Qxc3 {[%clk 0:01:30]}  Qxc3 {[%clk 0:00:09]} 35. Be5+ {[%clk 0:01:30]}  Qxe5+ {[%clk 0:00:09]} 36. Nxe5 {[%clk 0:01:31]} 1-0


[Site "https://www.chess.com"]

[Event "Titled Tuesday Blitz October 5 2021"]
[White "Khoroshev, Nikita"]
[Black "Demin, Vladimir"]
[WhiteFideId "14200287"]
[BlackFideId "4167457"]
[WhiteElo "2376"]
[BlackElo "2523"]
[Result "1-0"]
[Round "09"]
[TimeControl "180+1"]
[Date "2021.10.05"]
[WhiteClock "0:01:18"]
[BlackClock "0:00:07"]

1. e4 {[%clk 0:03:00]}  d5 {[%clk 0:02:59]} 2. exd5 {[%clk 0:02:59]}  Nf6 {[%clk 0:02:59]} 3. Nc3 {[%clk 0:02:57]}  Nxd5 {[%clk 0:02:58]} 4. Bc4 {[%clk 0:02:57]}  Nxc3 {[%clk 0:02:56]} 5. bxc3 {[%clk 0:02:58]}  g6 {[%clk 0:02:51]} 6. Qf3 {[%clk 0:02:55]}  e6 {[%clk 0:02:48]} 7. h4 {[%clk 0:02:55]}  h5 {[%clk 0:02:46]} 8. d4 {[%clk 0:02:55]}  Bg7 {[%clk 0:02:45]} 9. Bg5 {[%clk 0:02:55]}  Qd6 {[%clk 0:02:42]} 10. Bf4 {[%clk 0:02:47]}  Qe7 {[%clk 0:02:38]} 11. Bg5 {[%clk 0:02:40]}  Qd6 {[%clk 0:02:23]} 12. Ne2 {[%clk 0:02:37]}  O-O {[%clk 0:02:14]} 13. O-O {[%clk 0:02:31]}  e5 {[%clk 0:02:10]} 14. dxe5 {[%clk 0:02:23]}  Qxe5 {[%clk 0:02:09]} 15. Nf4 {[%clk 0:02:23]}  Kh7 {[%clk 0:01:26]} 16. Nxh5 {[%clk 0:02:09]}  gxh5 {[%clk 0:01:22]} 17. Qxh5+ {[%clk 0:02:10]}  Kg8 {[%clk 0:01:21]} 18. Rae1 {[%clk 0:01:58]}  Qxc3 {[%clk 0:00:52]} 19. Bd3 {[%clk 0:01:48]}  f5 {[%clk 0:00:51]} 20. Re3 {[%clk 0:01:40]}  Qc6 {[%clk 0:00:43]} 21. Rfe1 {[%clk 0:01:33]}  Na6 {[%clk 0:00:34]} 22. Re7 {[%clk 0:01:21]}  Qd6 {[%clk 0:00:07]} 23. Bc4+ {[%clk 0:01:18]} 1-0


[Site "https://www.chess.com"]

[Event "Titled Tuesday Blitz October 5 2021"]
[White "Koridze, Lile"]
[Black "Noboa Silva, Kevin"]
[WhiteFideId "13612514"]
[BlackFideId "3618471"]
[WhiteElo "1978"]
[BlackElo "2161"]
[Result "1-0"]
[Round "09"]
[TimeControl "180+1"]
[Date "2021.10.05"]
[WhiteClock "0:01:21"]
[BlackClock "0:00:02"]

1. d4 {[%clk 0:03:00]}  Nf6 {[%clk 0:02:59]} 2. c4 {[%clk 0:03:00]}  e6 {[%clk 0:02:58]} 3. Nc3 {[%clk 0:03:00]}  Bb4 {[%clk 0:02:57]} 4. e3 {[%clk 0:03:01]}  O-O {[%clk 0:02:56]} 5. Bd3 {[%clk 0:03:01]}  d5 {[%clk 0:02:55]} 6. Nf3 {[%clk 0:03:01]}  c5 {[%clk 0:02:46]} 7. O-O {[%clk 0:03:01]}  cxd4 {[%clk 0:02:44]} 8. exd4 {[%clk 0:03:01]}  dxc4 {[%clk 0:02:43]} 9. Bxc4 {[%clk 0:03:01]}  Nbd7 {[%clk 0:02:44]} 10. Bg5 {[%clk 0:03:01]}  Be7 {[%clk 0:02:42]} 11. Qd3 {[%clk 0:03:00]}  a6 {[%clk 0:02:37]} 12. Rad1 {[%clk 0:02:59]}  b5 {[%clk 0:02:34]} 13. Bb3 {[%clk 0:02:59]}  Bb7 {[%clk 0:02:34]} 14. Bc2 {[%clk 0:02:59]}  Re8 {[%clk 0:02:29]} 15. Ne2 {[%clk 0:02:50]}  Be4 {[%clk 0:02:18]} 16. Qd2 {[%clk 0:02:50]}  Bxc2 {[%clk 0:02:17]} 17. Qxc2 {[%clk 0:02:49]}  Rc8 {[%clk 0:02:17]} 18. Qd3 {[%clk 0:02:48]}  h6 {[%clk 0:02:13]} 19. Bh4 {[%clk 0:02:47]}  Nd5 {[%clk 0:02:04]} 20. Bxe7 {[%clk 0:02:47]}  Qxe7 {[%clk 0:02:03]} 21. a3 {[%clk 0:02:46]}  Red8 {[%clk 0:01:55]} 22. Ng3 {[%clk 0:02:44]}  N7f6 {[%clk 0:01:52]} 23. Ne5 {[%clk 0:02:44]}  Qb7 {[%clk 0:01:43]} 24. Rc1 {[%clk 0:02:41]}  Rxc1 {[%clk 0:01:40]} 25. Rxc1 {[%clk 0:02:41]}  Nf4 {[%clk 0:01:39]} 26. Qf3 {[%clk 0:02:41]}  Qxf3 {[%clk 0:01:29]} 27. Nxf3 {[%clk 0:02:41]}  h5 {[%clk 0:01:29]} 28. Kf1 {[%clk 0:02:41]}  g6 {[%clk 0:01:15]} 29. Ne2 {[%clk 0:02:39]}  Nd3 {[%clk 0:01:10]} 30. Rc2 {[%clk 0:02:38]}  Ne4 {[%clk 0:01:00]} 31. Nc1 {[%clk 0:02:07]}  Nxc1 {[%clk 0:00:31]} 32. Rxc1 {[%clk 0:02:07]}  Rd6 {[%clk 0:00:30]} 33. Ke2 {[%clk 0:02:05]}  Kg7 {[%clk 0:00:29]} 34. Ke3 {[%clk 0:02:05]}  Nf6 {[%clk 0:00:28]} 35. Rc8 {[%clk 0:02:01]}  Nd5+ {[%clk 0:00:27]} 36. Kd2 {[%clk 0:01:55]}  Nb6 {[%clk 0:00:21]} 37. Rb8 {[%clk 0:01:50]}  Nc4+ {[%clk 0:00:10]} 38. Kc3 {[%clk 0:01:50]}  Kf6 {[%clk 0:00:09]} 39. Rb7 {[%clk 0:01:47]}  g5 {[%clk 0:00:08]} 40. b3 {[%clk 0:01:41]}  Nb6 {[%clk 0:00:08]} 41. Ne5 {[%clk 0:01:40]}  Nd5+ {[%clk 0:00:08]} 42. Kd2 {[%clk 0:01:38]}  Ne7 {[%clk 0:00:08]} 43. Kd3 {[%clk 0:01:35]}  g4 {[%clk 0:00:07]} 44. Ke4 {[%clk 0:01:34]}  h4 {[%clk 0:00:07]} 45. Nxg4+ {[%clk 0:01:34]}  Kg7 {[%clk 0:00:07]} 46. Rxe7 {[%clk 0:01:33]}  Rc6 {[%clk 0:00:06]} 47. Ne5 {[%clk 0:01:33]}  Rc3 {[%clk 0:00:05]} 48. Rxf7+ {[%clk 0:01:33]}  Kg8 {[%clk 0:00:06]} 49. Ra7 {[%clk 0:01:31]}  Rxb3 {[%clk 0:00:06]} 50. Rxa6 {[%clk 0:01:32]}  h3 {[%clk 0:00:05]} 51. gxh3 {[%clk 0:01:31]}  Rxh3 {[%clk 0:00:05]} 52. f4 {[%clk 0:01:30]}  Rxh2 {[%clk 0:00:05]} 53. Rxe6 {[%clk 0:01:30]}  Re2+ {[%clk 0:00:05]} 54. Kd5 {[%clk 0:01:30]}  Ra2 {[%clk 0:00:06]} 55. Rb6 {[%clk 0:01:30]}  Kg7 {[%clk 0:00:06]} 56. Rxb5 {[%clk 0:01:29]}  Rxa3 {[%clk 0:00:06]} 57. f5 {[%clk 0:01:28]}  Ra6 {[%clk 0:00:05]} 58. Ng4 {[%clk 0:01:23]}  Ra8 {[%clk 0:00:04]} 59. Rb7+ {[%clk 0:01:21]}  Kh8 {[%clk 0:00:03]} 60. Ke5 {[%clk 0:01:21]}  Re8+ {[%clk 0:00:02]} 61. Kf6 {[%clk 0:01:21]} 1-0


[Site "https://www.chess.com"]

[Event "Titled Tuesday Blitz October 5 2021"]
[White "Krivonosov, Oleg"]
[Black "Maksimenko, Viktor"]
[WhiteFideId "11600349"]
[BlackFideId "13710478"]
[WhiteElo "2469"]
[BlackElo "2269"]
[Result "1-0"]
[Round "09"]
[TimeControl "180+1"]
[Date "2021.10.05"]
[WhiteClock "0:00:42"]
[BlackClock "0:00:02"]

1. Nf3 {[%clk 0:03:00]}  d5 {[%clk 0:02:59]} 2. d4 {[%clk 0:03:00]}  Nf6 {[%clk 0:02:59]} 3. c4 {[%clk 0:03:00]}  e6 {[%clk 0:03:00]} 4. g3 {[%clk 0:03:00]}  Be7 {[%clk 0:02:59]} 5. Bg2 {[%clk 0:03:00]}  O-O {[%clk 0:03:00]} 6. O-O {[%clk 0:03:00]}  dxc4 {[%clk 0:03:01]} 7. Qa4 {[%clk 0:02:59]}  a6 {[%clk 0:03:00]} 8. Qxc4 {[%clk 0:02:59]}  b5 {[%clk 0:03:00]} 9. Qc2 {[%clk 0:02:59]}  Bb7 {[%clk 0:03:01]} 10. Bg5 {[%clk 0:02:59]}  Be4 {[%clk 0:02:57]} 11. Qd2 {[%clk 0:02:58]}  Nbd7 {[%clk 0:02:54]} 12. Nc3 {[%clk 0:02:57]}  Bb7 {[%clk 0:02:55]} 13. Rfd1 {[%clk 0:02:53]}  c5 {[%clk 0:02:46]} 14. dxc5 {[%clk 0:02:52]}  Nxc5 {[%clk 0:02:46]} 15. Qxd8 {[%clk 0:02:50]}  Rfxd8 {[%clk 0:02:47]} 16. Ne5 {[%clk 0:02:49]}  Bxg2 {[%clk 0:02:41]} 17. Kxg2 {[%clk 0:02:49]}  Rdc8 {[%clk 0:02:35]} 18. Rac1 {[%clk 0:02:47]}  h6 {[%clk 0:02:34]} 19. Be3 {[%clk 0:02:46]}  b4 {[%clk 0:02:13]} 20. Nb1 {[%clk 0:02:40]}  Nd5 {[%clk 0:02:13]} 21. Bxc5 {[%clk 0:02:39]}  Bxc5 {[%clk 0:02:14]} 22. Nd3 {[%clk 0:02:34]}  Be7 {[%clk 0:02:10]} 23. Nd2 {[%clk 0:02:30]}  a5 {[%clk 0:01:35]} 24. Nc4 {[%clk 0:02:25]}  Ra6 {[%clk 0:01:28]} 25. Nce5 {[%clk 0:02:21]}  Rxc1 {[%clk 0:01:18]} 26. Rxc1 {[%clk 0:02:22]}  Bf6 {[%clk 0:01:19]} 27. Rc8+ {[%clk 0:02:18]}  Kh7 {[%clk 0:01:19]} 28. Nxf7 {[%clk 0:02:18]}  a4 {[%clk 0:01:07]} 29. e4 {[%clk 0:02:01]}  Ne7 {[%clk 0:01:03]} 30. Rc4 {[%clk 0:01:52]}  Nc6 {[%clk 0:00:46]} 31. Nxb4 {[%clk 0:01:42]}  Nxb4 {[%clk 0:00:45]} 32. Rxb4 {[%clk 0:01:42]}  a3 {[%clk 0:00:46]} 33. bxa3 {[%clk 0:01:39]}  Rxa3 {[%clk 0:00:47]} 34. e5 {[%clk 0:01:34]}  Be7 {[%clk 0:00:47]} 35. Rb7 {[%clk 0:01:33]}  Bc5 {[%clk 0:00:43]} 36. Rb2 {[%clk 0:01:26]}  Kg6 {[%clk 0:00:40]} 37. Nd6 {[%clk 0:01:22]}  Bd4 {[%clk 0:00:26]} 38. Re2 {[%clk 0:01:20]}  Ra5 {[%clk 0:00:22]} 39. f4 {[%clk 0:01:17]}  Ra3 {[%clk 0:00:20]} 40. Rd2 {[%clk 0:01:03]}  Bc3 {[%clk 0:00:17]} 41. Rc2 {[%clk 0:01:01]}  Bb4 {[%clk 0:00:17]} 42. Rb2 {[%clk 0:00:58]}  Bxd6 {[%clk 0:00:15]} 43. exd6 {[%clk 0:00:57]}  Rd3 {[%clk 0:00:16]} 44. a4 {[%clk 0:00:57]}  Rxd6 {[%clk 0:00:15]} 45. Ra2 {[%clk 0:00:57]}  Ra6 {[%clk 0:00:15]} 46. a5 {[%clk 0:00:57]}  Kf5 {[%clk 0:00:15]} 47. Kf3 {[%clk 0:00:57]}  e5 {[%clk 0:00:16]} 48. g4+ {[%clk 0:00:56]}  Ke6 {[%clk 0:00:16]} 49. h4 {[%clk 0:00:54]}  exf4 {[%clk 0:00:14]} 50. Kxf4 {[%clk 0:00:54]}  Kf6 {[%clk 0:00:13]} 51. Ke4 {[%clk 0:00:53]}  g6 {[%clk 0:00:11]} 52. Kd5 {[%clk 0:00:52]}  h5 {[%clk 0:00:10]} 53. g5+ {[%clk 0:00:50]}  Kf5 {[%clk 0:00:11]} 54. Ra4 {[%clk 0:00:49]}  Rd6+ {[%clk 0:00:05]} 55. Kc5 {[%clk 0:00:45]}  Ra6 {[%clk 0:00:01]} 56. Kb5 {[%clk 0:00:44]}  Rd6 {[%clk 0:00:01]} 57. a6 {[%clk 0:00:44]}  Rd5+ {[%clk 0:00:01]} 58. Kc6 {[%clk 0:00:44]}  Rd4 {[%clk 0:00:02]} 59. Rxd4 {[%clk 0:00:42]} 1-0


[Site "https://www.chess.com"]

[Event "Titled Tuesday Blitz October 5 2021"]
[White "Langrock, Hannes"]
[Black "Kabanov, Nikolai"]
[WhiteFideId "4655290"]
[BlackFideId "4127820"]
[WhiteElo "2325"]
[BlackElo "2303"]
[Result "1-0"]
[Round "09"]
[TimeControl "180+1"]
[Date "2021.10.05"]
[WhiteClock "0:00:07"]
[BlackClock "0:00:04"]

1. d4 {[%clk 0:02:58]}  Nf6 {[%clk 0:02:59]} 2. c4 {[%clk 0:02:58]}  e6 {[%clk 0:02:59]} 3. g3 {[%clk 0:02:59]}  Bb4+ {[%clk 0:03:00]} 4. Bd2 {[%clk 0:02:59]}  Bxd2+ {[%clk 0:02:57]} 5. Qxd2 {[%clk 0:02:59]}  c5 {[%clk 0:02:58]} 6. Nf3 {[%clk 0:02:46]}  cxd4 {[%clk 0:02:41]} 7. Nxd4 {[%clk 0:02:45]}  Nc6 {[%clk 0:02:39]} 8. Nc3 {[%clk 0:02:44]}  O-O {[%clk 0:02:36]} 9. Bg2 {[%clk 0:02:44]}  Qb6 {[%clk 0:02:29]} 10. Ndb5 {[%clk 0:02:28]}  d5 {[%clk 0:02:05]} 11. cxd5 {[%clk 0:02:26]}  Nxd5 {[%clk 0:02:01]} 12. Nxd5 {[%clk 0:02:00]}  exd5 {[%clk 0:02:02]} 13. Nc3 {[%clk 0:01:58]}  d4 {[%clk 0:01:49]} 14. Nd5 {[%clk 0:01:58]}  Qd8 {[%clk 0:01:48]} 15. O-O {[%clk 0:01:57]}  Bh3 {[%clk 0:01:29]} 16. Bxh3 {[%clk 0:01:50]}  Qxd5 {[%clk 0:01:29]} 17. Bg2 {[%clk 0:01:44]}  Qd6 {[%clk 0:01:29]} 18. Rac1 {[%clk 0:01:35]}  Rad8 {[%clk 0:01:26]} 19. Rc4 {[%clk 0:01:32]}  Ne5 {[%clk 0:01:22]} 20. Ra4 {[%clk 0:01:13]}  a6 {[%clk 0:00:42]} 21. Bxb7 {[%clk 0:01:12]}  Qd7 {[%clk 0:00:43]} 22. Rb4 {[%clk 0:01:12]}  a5 {[%clk 0:00:41]} 23. Rb3 {[%clk 0:01:07]}  Rb8 {[%clk 0:00:41]} 24. Bg2 {[%clk 0:01:01]}  Rxb3 {[%clk 0:00:35]} 25. axb3 {[%clk 0:01:01]}  a4 {[%clk 0:00:25]} 26. bxa4 {[%clk 0:00:58]}  Qxa4 {[%clk 0:00:26]} 27. b3 {[%clk 0:00:49]}  Qxb3 {[%clk 0:00:24]} 28. Qxd4 {[%clk 0:00:49]}  Qe6 {[%clk 0:00:24]} 29. Rd1 {[%clk 0:00:47]}  Qf6 {[%clk 0:00:22]} 30. h3 {[%clk 0:00:43]}  h6 {[%clk 0:00:23]} 31. Qe4 {[%clk 0:00:40]}  Ng6 {[%clk 0:00:15]} 32. f4 {[%clk 0:00:35]}  Qb6+ {[%clk 0:00:14]} 33. Qd4 {[%clk 0:00:32]}  Qe6 {[%clk 0:00:10]} 34. e4 {[%clk 0:00:30]}  Ne7 {[%clk 0:00:10]} 35. Kh2 {[%clk 0:00:28]}  f6 {[%clk 0:00:09]} 36. Qd6 {[%clk 0:00:25]}  Qxd6 {[%clk 0:00:09]} 37. Rxd6 {[%clk 0:00:26]}  Kf7 {[%clk 0:00:09]} 38. Rd7 {[%clk 0:00:24]}  Ke6 {[%clk 0:00:08]} 39. Rb7 {[%clk 0:00:25]}  g5 {[%clk 0:00:08]} 40. Bf3 {[%clk 0:00:20]}  Rd8 {[%clk 0:00:06]} 41. Bg4+ {[%clk 0:00:20]}  Kf7 {[%clk 0:00:06]} 42. Bh5+ {[%clk 0:00:13]}  Kf8 {[%clk 0:00:07]} 43. Kg2 {[%clk 0:00:11]}  Rd3 {[%clk 0:00:06]} 44. e5 {[%clk 0:00:07]}  fxe5 {[%clk 0:00:05]} 45. fxe5 {[%clk 0:00:08]}  Re3 {[%clk 0:00:06]} 46. Rb5 {[%clk 0:00:07]}  Nc6 {[%clk 0:00:05]} 47. Rb6 {[%clk 0:00:05]}  Nxe5 {[%clk 0:00:04]} 48. Rxh6 {[%clk 0:00:06]}  Nd7 {[%clk 0:00:02]} 49. Rd6 {[%clk 0:00:05]}  Ke7 {[%clk 0:00:02]} 50. Rd1 {[%clk 0:00:05]}  Re5 {[%clk 0:00:03]} 51. Bf3 {[%clk 0:00:04]}  Nf6 {[%clk 0:00:03]} 52. Rd2 {[%clk 0:00:05]}  Kf7 {[%clk 0:00:03]} 53. Bd1 {[%clk 0:00:05]}  Rc5 {[%clk 0:00:03]} 54. Rf2 {[%clk 0:00:06]}  Kg6 {[%clk 0:00:03]} 55. Bc2+ {[%clk 0:00:06]}  Kg7 {[%clk 0:00:03]} 56. Bd3 {[%clk 0:00:06]}  Rd5 {[%clk 0:00:04]} 57. Bf1 {[%clk 0:00:07]}  Rd4 {[%clk 0:00:04]} 58. Re2 {[%clk 0:00:07]}  Rd3 {[%clk 0:00:04]} 59. Re7+ {[%clk 0:00:06]}  Kf8 {[%clk 0:00:04]} 60. Re2 {[%clk 0:00:06]}  Kg7 {[%clk 0:00:04]} 61. Rf2 {[%clk 0:00:07]}  Ne4 {[%clk 0:00:04]} 62. Bxd3 {[%clk 0:00:07]} 1-0


[Site "https://www.chess.com"]

[Event "Titled Tuesday Blitz October 5 2021"]
[White "Le, Tuan Minh"]
[Black "Maksimovic, Bojan"]
[WhiteFideId "12401153"]
[BlackFideId "14408120"]
[WhiteElo "2906"]
[BlackElo "2735"]
[Result "1-0"]
[Round "09"]
[TimeControl "180+1"]
[Date "2021.10.05"]
[WhiteClock "0:00:15"]
[BlackClock "0:00:06"]

1. d4 {[%clk 0:03:00]}  d5 {[%clk 0:03:00]} 2. Nf3 {[%clk 0:02:56]}  Bf5 {[%clk 0:02:59]} 3. c4 {[%clk 0:02:49]}  e6 {[%clk 0:02:57]} 4. Nc3 {[%clk 0:02:49]}  Nc6 {[%clk 0:02:57]} 5. a3 {[%clk 0:02:44]}  Nf6 {[%clk 0:02:54]} 6. Bg5 {[%clk 0:02:43]}  Be7 {[%clk 0:02:54]} 7. e3 {[%clk 0:02:43]}  O-O {[%clk 0:02:53]} 8. Rc1 {[%clk 0:02:42]}  Ne4 {[%clk 0:02:53]} 9. Bxe7 {[%clk 0:02:42]}  Nxe7 {[%clk 0:02:54]} 10. Be2 {[%clk 0:02:39]}  c6 {[%clk 0:02:54]} 11. O-O {[%clk 0:02:39]}  h6 {[%clk 0:02:43]} 12. h3 {[%clk 0:02:15]}  Bh7 {[%clk 0:02:37]} 13. Qb3 {[%clk 0:02:08]}  Rb8 {[%clk 0:02:32]} 14. Rfd1 {[%clk 0:02:07]}  Nf5 {[%clk 0:02:26]} 15. cxd5 {[%clk 0:01:51]}  Nxc3 {[%clk 0:02:19]} 16. bxc3 {[%clk 0:01:52]}  cxd5 {[%clk 0:02:17]} 17. c4 {[%clk 0:01:53]}  dxc4 {[%clk 0:02:17]} 18. Bxc4 {[%clk 0:01:50]}  Nd6 {[%clk 0:02:17]} 19. Bd3 {[%clk 0:01:50]}  Bxd3 {[%clk 0:02:17]} 20. Rxd3 {[%clk 0:01:50]}  Qa5 {[%clk 0:02:13]} 21. Rdc3 {[%clk 0:01:43]}  Qb5 {[%clk 0:01:55]} 22. Qd1 {[%clk 0:01:03]}  Rfc8 {[%clk 0:01:53]} 23. Ne5 {[%clk 0:00:55]}  Qe8 {[%clk 0:01:38]} 24. Rc7 {[%clk 0:00:48]}  Rxc7 {[%clk 0:01:32]} 25. Rxc7 {[%clk 0:00:49]}  Rc8 {[%clk 0:01:31]} 26. Qc2 {[%clk 0:00:43]}  Qd8 {[%clk 0:01:30]} 27. Rc5 {[%clk 0:00:43]}  Rxc5 {[%clk 0:01:13]} 28. Qxc5 {[%clk 0:00:44]}  a6 {[%clk 0:01:05]} 29. g3 {[%clk 0:00:30]}  Ne4 {[%clk 0:01:02]} 30. Qc2 {[%clk 0:00:29]}  Nd6 {[%clk 0:00:50]} 31. Qc5 {[%clk 0:00:29]}  Ne4 {[%clk 0:00:49]} 32. Qc4 {[%clk 0:00:26]}  Nd6 {[%clk 0:00:48]} 33. Qb4 {[%clk 0:00:25]}  Qc7 {[%clk 0:00:47]} 34. h4 {[%clk 0:00:24]}  h5 {[%clk 0:00:45]} 35. Qb3 {[%clk 0:00:20]}  g6 {[%clk 0:00:37]} 36. Qd1 {[%clk 0:00:20]}  Qa5 {[%clk 0:00:31]} 37. Qc1 {[%clk 0:00:18]}  Kg7 {[%clk 0:00:25]} 38. Nf3 {[%clk 0:00:17]}  Qd5 {[%clk 0:00:21]} 39. Ne5 {[%clk 0:00:17]}  Qa5 {[%clk 0:00:12]} 40. Qb2 {[%clk 0:00:17]}  b5 {[%clk 0:00:10]} 41. d5 {[%clk 0:00:16]}  Qe1+ {[%clk 0:00:06]} 42. Kg2 {[%clk 0:00:16]}  Kh7 {[%clk 0:00:05]} 43. dxe6 {[%clk 0:00:15]}  fxe6 {[%clk 0:00:06]} 44. Nf3 {[%clk 0:00:15]}  Ne4 {[%clk 0:00:06]} 45. Nxe1 {[%clk 0:00:15]} 1-0


[Site "https://www.chess.com"]

[Event "Titled Tuesday Blitz October 5 2021"]
[White "Liyanage, Ranindu Dilshan"]
[Black "Sadhwani, Raunak"]
[WhiteFideId "9915834"]
[BlackFideId "35093487"]
[WhiteElo "1839"]
[BlackElo "2517"]
[Result "0-1"]
[Round "09"]
[TimeControl "180+1"]
[Date "2021.10.05"]
[WhiteClock "0:00:04"]
[BlackClock "0:00:14"]

1. e4 {[%clk 0:03:00]}  c6 {[%clk 0:02:54]} 2. d4 {[%clk 0:03:00]}  d5 {[%clk 0:02:55]} 3. e5 {[%clk 0:03:00]}  Bf5 {[%clk 0:02:55]} 4. h4 {[%clk 0:03:01]}  Qb6 {[%clk 0:02:54]} 5. Nc3 {[%clk 0:02:58]}  h6 {[%clk 0:02:54]} 6. g4 {[%clk 0:02:56]}  Bd7 {[%clk 0:02:51]} 7. a3 {[%clk 0:02:41]}  e6 {[%clk 0:02:49]} 8. Be3 {[%clk 0:02:38]}  c5 {[%clk 0:02:47]} 9. Nge2 {[%clk 0:02:28]}  h5 {[%clk 0:02:22]} 10. gxh5 {[%clk 0:02:24]}  Nh6 {[%clk 0:02:22]} 11. Bh3 {[%clk 0:02:20]}  Nc6 {[%clk 0:02:17]} 12. Na4 {[%clk 0:02:07]}  Qa5+ {[%clk 0:02:17]} 13. Nac3 {[%clk 0:01:42]}  cxd4 {[%clk 0:02:13]} 14. Bxd4 {[%clk 0:01:35]}  Nxd4 {[%clk 0:02:14]} 15. Nxd4 {[%clk 0:01:33]}  Qb6 {[%clk 0:02:14]} 16. Nb3 {[%clk 0:01:32]}  Be7 {[%clk 0:02:08]} 17. Qe2 {[%clk 0:01:24]}  Bxh4 {[%clk 0:01:45]} 18. Bxe6 {[%clk 0:01:15]}  Bxf2+ {[%clk 0:01:40]} 19. Qxf2 {[%clk 0:01:16]}  Bxe6 {[%clk 0:01:37]} 20. Qxb6 {[%clk 0:01:10]}  axb6 {[%clk 0:01:38]} 21. O-O-O {[%clk 0:01:11]}  Rd8 {[%clk 0:01:37]} 22. Nd4 {[%clk 0:01:05]}  O-O {[%clk 0:01:35]} 23. Ndb5 {[%clk 0:00:59]}  Ng4 {[%clk 0:01:34]} 24. Rhe1 {[%clk 0:00:57]}  Kh7 {[%clk 0:01:31]} 25. Rd4 {[%clk 0:00:52]}  Kh6 {[%clk 0:01:25]} 26. Nc7 {[%clk 0:00:51]}  Kxh5 {[%clk 0:01:07]} 27. Rh1+ {[%clk 0:00:50]}  Kg5 {[%clk 0:01:07]} 28. Rg1 {[%clk 0:00:40]}  Bf5 {[%clk 0:01:06]} 29. N7xd5 {[%clk 0:00:36]}  Rfe8 {[%clk 0:01:05]} 30. Ne4+ {[%clk 0:00:22]}  Bxe4 {[%clk 0:00:56]} 31. Rxe4 {[%clk 0:00:23]}  f5 {[%clk 0:00:56]} 32. Rd4 {[%clk 0:00:10]}  Rxe5 {[%clk 0:00:54]} 33. c4 {[%clk 0:00:11]}  b5 {[%clk 0:00:52]} 34. b3 {[%clk 0:00:10]}  bxc4 {[%clk 0:00:53]} 35. bxc4 {[%clk 0:00:11]}  b5 {[%clk 0:00:54]} 36. Rgd1 {[%clk 0:00:07]}  bxc4 {[%clk 0:00:53]} 37. Nc3 {[%clk 0:00:07]}  Rxd4 {[%clk 0:00:52]} 38. Rxd4 {[%clk 0:00:08]}  Ne3 {[%clk 0:00:47]} 39. Kd2 {[%clk 0:00:08]}  f4 {[%clk 0:00:47]} 40. Ke2 {[%clk 0:00:09]}  Kf5 {[%clk 0:00:37]} 41. Kf3 {[%clk 0:00:08]}  g5 {[%clk 0:00:38]} 42. Ne2 {[%clk 0:00:08]}  Rd5 {[%clk 0:00:17]} 43. Rxd5+ {[%clk 0:00:08]}  Nxd5 {[%clk 0:00:18]} 44. Nd4+ {[%clk 0:00:09]}  Ke5 {[%clk 0:00:18]} 45. Nc2 {[%clk 0:00:08]}  c3 {[%clk 0:00:17]} 46. a4 {[%clk 0:00:08]}  Ne3 {[%clk 0:00:14]} 47. a5 {[%clk 0:00:04]}  Nxc2 {[%clk 0:00:13]} 48. a6 {[%clk 0:00:04]}  Nd4+ {[%clk 0:00:14]} 0-1


[Site "https://www.chess.com"]